[Event "10th Cherry Blossom Classic 2023"]
[Site "Dulles"]
[Date "2023.05.27"]
[Round "3.1"]
[White "Bora, Safal"]
[Black "Park, Evan"]
[Result "1/2-1/2"]
[ECO "A13"]
[WhiteElo "2462"]
[BlackElo "2380"]
[Annotator "RC"]
[PlyCount "133"]
[EventDate "2023.05.24"]
[EventType "swiss"]
[EventCountry "USA"]
[SourceTitle "playchess.com"]
[Source "ChessBase"]
[SourceQuality "1"]
[TimeControl "5400+30"]

1. c4 {[%emt 0:02:56]} e6 {[%emt 0:00:33]} 2. g3 {[%emt 0:00:13]} d5 {[%emt 0:01:05]} 3. Bg2 {[%emt 0:00:05]} Nf6 {[%emt 0:00:12]} 4. Nf3 {[%emt 0:00:14]} dxc4 {[%emt 0:02:08]} 5. Qa4+ {[%emt 0:00:18]} Bd7 {[%emt 0:00:22]} 6. Qxc4 {[%emt 0:00:07]} c5 {[%emt 0:00:07]} 7. Nc3 {[%emt 0:02:08]} Bc6 {[%emt 0:02:22]} 8. O-O {[%emt 0:00:36]} Nbd7 {[%emt 0:01:50]} 9. e4 {[%emt 0:00:58]} Be7 {[%emt 0:05:19]} 10. Qe2 {[%emt 0:01:14]} e5 {[%emt 0:07:11]} 11. a4 {[%emt 0:03:48]} O-O {[%emt 0:02:16]} 12. d3 {[%emt 0:00:12]} Ne8 {[%emt 0:07:39]} 13. Bh3 {[%emt 0:08:26]} Bf6 {[%emt 0:04:05]} 14. Nd2 {[%emt 0:01:32]} Nc7 {[%emt 0:03:58]} 15. Nc4 {[%emt 0:01:39]} Nb6 {[%emt 0:10:59]} 16. Na5 {[%emt 0:11:14]} Qd6 {[%emt 0:02:00]} 17. Be3 {[%emt 0:01:39]} Rab8 {[%emt 0:09:02]} 18. Nb3 {[%emt 0:18:38]} Na6 {[%emt 0:01:46]} 19. Rfc1 {[%emt 0:13:25]} Rfd8 {[%emt 0:10:24]} 20. a5 {[%emt 0:05:58]} Nd7 {[%emt 0:01:59]} 21. Bg2 {[%emt 0:08:16]} Nb4 {[%emt 0:02:58]} 22. Bf1 {[%emt 0:04:39]} b6 {[%emt 0:00:47]} 23. Na2 {[%emt 0:00:36]} Nxa2 {[%emt 0:01:06]} 24. Rxa2 {[%emt 0:00:01]} Nf8 {[%emt 0:01:58]} 25. axb6 {[%emt 0:00:38]} axb6 {[%emt 0:00:02]} 26. Nd2 {[%emt 0:00:33]} Ne6 {[%emt 0:02:11]} 27. Nc4 {[%emt 0:00:31]} Qc7 {[%emt 0:00:23]} 28. b4 {[%emt 0:00:43]} cxb4 {[%emt 0:06:12]} 29. Qb2 {[%emt 0:01:06]} Nd4 {[%emt 0:00:49]} 30. Qxb4 {[%emt 0:00:18]} Be7 {[%emt 0:01:03]} 31. Qc3 {[%emt 0:01:07]} Bc5 {[%emt 0:03:35]} 32. Nxb6 {[%emt 0:02:49]} Bxb6 {[%emt 0:00:02]} 33. Bxd4 {[%emt 0:00:08]} Bxd4 {[%emt 0:00:06]} 34. Qxc6 {[%emt 0:00:05]} Qe7 {[%emt 0:00:05]} 35. Kg2 {[%emt 0:00:37]} h5 {[%emt 0:00:52]} 36. h4 {[%emt 0:00:11]} Rb6 {[%emt 0:00:47]} 37. Qc7 {[%emt 0:00:28]} Qf6 {[%emt 0:00:20]} 38. Kh1 {[%emt 0:05:21]} Rdb8 {[%emt 0:00:32]} 39. Bg2 {[%emt 0:02:27]} g6 {[%emt 0:00:29]} 40. Rac2 {[%emt 0:01:57]} Kg7 {[%emt 0:00:57]} 41. Kh2 {[%emt 0:00:50]} Rb2 {[%emt 0:01:42]} 42. Rxb2 {[%emt 0:00:58]} Rxb2 {[%emt 0:00:04]} 43. Rc2 {[%emt 0:00:05]} Rxc2 {[%emt 0:01:11]} 44. Qxc2 {[%emt 0:00:05]} Bxf2 {[%emt 0:00:03]} 45. Qe2 {[%emt 0:00:34]} Bd4 {[%emt 0:00:10]} 46. Qf3 {[%emt 0:00:17]} Qe6 {[%emt 0:00:29]} 47. Bf1 {[%emt 0:00:20]} Qa2+ {[%emt 0:00:20]} 48. Be2 {[%emt 0:00:05]} Qd2 {[%emt 0:00:15]} 49. Kh3 {[%emt 0:00:12]} Qe1 {[%emt 0:01:21]} 50. Qf1 {[%emt 0:00:26]} Qc3 {[%emt 0:00:41]} 51. Qf3 {[%emt 0:00:16]} Qd2 {[%emt 0:00:29]} 52. Bf1 {[%emt 0:00:59]} Qc1 {[%emt 0:00:50]} 53. Be2 {[%emt 0:00:19]} Qc8+ {[%emt 0:01:01]} 54. Kg2 {[%emt 0:00:09]} Qc2 {[%emt 0:00:14]} 55. Kh3 {[%emt 0:00:06]} Bg1 {[%emt 0:00:32]} 56. Kg2 {[%emt 0:00:12]} Bc5 {[%emt 0:00:36]} 57. Kh3 {[%emt 0:00:05]} Bd4 {[%emt 0:00:01]} 58. Bd1 {[%emt 0:00:26]} Qc3 {[%emt 0:00:18]} 59. Be2 {[%emt 0:00:18]} Qd2 {[%emt 0:00:35]} 60. Bf1 {[%emt 0:00:32]} Qe1 {[%emt 0:00:05]} 61. Qe2 {[%emt 0:00:41]} Qb4 {[%emt 0:00:33]} 62. Qf3 {[%emt 0:00:10]} Bc5 {[%emt 0:00:09]} 63. Be2 {[%emt 0:00:06]} Qd2 {[%emt 0:00:33]} 64. Bf1 {[%emt 0:00:36]} Qe1 {[%emt 0:00:16]} 65. Qe2 {[%emt 0:00:09]} Qxe2 {[%emt 0:00:10]} 66. Bxe2 {[%emt 0:00:05]} Bd4 {[%emt 0:00:05]} 67. Bd1 {[%emt 0:00:03]} 1/2-1/2

[Event "10th Cherry Blossom Classic 2023"]
[Site "Dulles"]
[Date "2023.05.27"]
[Round "3.2"]
[White "Nyzhnyk, Illya"]
[Black "Roselli Mailhe, Bernardo"]
[Result "1-0"]
[ECO "E11"]
[WhiteElo "2644"]
[BlackElo "2380"]
[Annotator "TA"]
[PlyCount "93"]
[EventDate "2023.05.24"]
[EventType "swiss"]
[EventCountry "USA"]
[SourceTitle "playchess.com"]
[Source "ChessBase"]
[SourceQuality "1"]
[TimeControl "5400+30"]

{[%evp 18,93,28,28,32,20,32,33,47,45,60,54,104,76,78,66,77,37,67,59,63,69,54,70,62,52,92,83,90,75,101,97,95,80,110,45,47,50,63,43,48,50,54,16,4,3,237,232,215,217,305,264,386,288,302,302,295,290,375,387,377,282,404,422,602,592,517,304,664,643,638,630,784,780,712,709,845,820]} 1. d4 {[%emt 0:00:03]} Nf6 {[%emt 0:00:08]} 2. c4 {[%emt 0:00:05]} e6 {[%emt 0:00:05]} 3. g3 {[%emt 0:00:03]} Bb4+ {[%emt 0:00:16]} 4. Bd2 {[%emt 0:00:06]} a5 {[%emt 0:00:13]} 5. Bg2 {[%emt 0:00:05]} d6 {[%emt 0:00:11]} 6. Nf3 {[%emt 0:00:09]} Nbd7 {[%emt 0:00:10]} 7. O-O {[%emt 0:00:06]} e5 {[%emt 0:00:25]} 8. e3 {[%emt 0:05:38]} Bxd2 {[%emt 0:02:20]} 9. Qxd2 {[%emt 0:00:46]} O-O {[%emt 0:00:10]} 10. Nc3 {[%emt 0:00:02]} Re8 {[%emt 0:08:17] E11: Bogo-Indian.} 11. b3 $5 {[%emt 0:01:48][%mdl 4] Exploring less charted territory.} h6 {[%emt 0:08:52] [#]} 12. e4 $146 {[%emt 0:02:05]} ({Predecessor:} 12. Qc2 Nf8 13. h3 Bd7 14. Rad1 Qc8 15. Kh2 Rb8 16. Rfe1 c6 17. dxe5 dxe5 18. Nd2 {1-0 Ghaem Maghami,E (2537)-Shubin,K (2334) Wch Rapid St Petersburg 2018 (3)}) 12... c6 {[%emt 0:17:59] White is slightly better.} 13. Rfe1 {[%emt 0:00:38]} Qc7 {[%emt 0:00:47]} 14. Rad1 {[%emt 0:01:30]} b6 {[%emt 0:01:51]} ({Better is} 14... Nf8 $14) 15. h3 {[%emt 0:02:14]} Bb7 {[%emt 0:02:18]} 16. Nh4 {[%emt 0:02:06]} Rad8 {[%emt 0:02:19]} 17. f4 {[%emt 0:00:51] White is more active.} Nf8 {[%emt 0:07:34]} 18. Qf2 {[%emt 0:01:20]} Ne6 {[%emt 0:06:17]} 19. Nf5 {[%emt 0:00:34]} exd4 {[%emt 0:04:44]} 20. Nxd4 {[%emt 0:00:51]} Nxd4 {[%emt 0:01:39]} 21. Qxd4 {[%emt 0:02:52]} c5 {[%emt 0:02:33]} 22. Qd3 {[%emt 0:02:31]} Qb8 {[%emt 0:03:56]} 23. g4 {[%emt 0:05:37]} Qa8 {[%emt 0:05:38]} 24. Re2 {[%emt 0:07:55]} Rd7 {[%emt 0:02:44]} 25. Rde1 {[%emt 0:00:15]} Re6 {[%emt 0:02:12]} 26. Nd5 {[%emt 0:03:17]} (26. Qf3 $16) 26... Nxd5 $14 {[%emt 0:00:35]} 27. exd5 {[%emt 0:00:08]} Rxe2 {[%emt 0:00:44]} 28. Qxe2 {[%emt 0:00:03] aiming for Qe8+.} Qf8 {[%emt 0:02:52] Black is weak on the light squares} 29. Be4 $36 {[%emt 0:02:37][%mdl 2048] White is pushing.} Rd8 {[%emt 0:05:27]} 30. Kg2 {[%emt 0:06:12]} Bc8 {[%emt 0:08:08]} 31. Bf5 {[%emt 0:00:31]} Bd7 $2 {[%emt 0:01:18] [#] Black cannot hold the game after this.} (31... Bxf5 $11 32. gxf5 a4) 32. Bxd7 $1 $18 {[%emt 0:00:29]} Rxd7 {[%emt 0:00:05][%mdl 4096] Endgame [#] KQR-KQR} 33. a4 $1 {[%emt 0:00:35]} f6 {[%emt 0:02:40]} (33... g6 {was called for.} 34. Kg3 Kg7 35. Qb2+ Kg8) 34. Qe8 {[%emt 0:00:16]} Rc7 {[%emt 0:01:02]} (34... Qxe8 $142 35. Rxe8+ Kf7) 35. Re6 {[%emt 0:00:49] Black must now prevent Qxf8+.} Qxe8 {[%emt 0:00:29]} 36. Rxe8+ {[%emt 0:00:05] KR-KR} Kf7 {[%emt 0:00:03]} 37. Rb8 {[%emt 0:00:06]} Ke7 {[%emt 0:00:27]} 38. Kf3 {[%emt 0:00:12]} ({Weaker is} 38. Rxb6 f5 39. Kf2 (39. gxf5 Rd7 $18) 39... Rd7 $18) 38... Rd7 {[%emt 0:00:47]} 39. Rxb6 {[%emt 0:00:41] Threatens to win with Ke4.} g6 {[%emt 0:00:23]} (39... f5 $142 40. h4 Kf6) 40. Ke4 {[%emt 0:00:31]} Ra7 {[%emt 0:00:30]} (40... Kf7 $142 41. Ra6 h5 42. Rxa5 Rb7) 41. h4 {[%emt 0:00:20]} Rd7 {[%emt 0:00:13]} 42. Kd3 {[%emt 0:01:53]} f5 $2 {[%emt 0:00:17]} (42... g5 43. fxg5 hxg5 44. hxg5 fxg5) 43. g5 {[%emt 0:00:44] White is clearly winning.} hxg5 {[%emt 0:00:52]} 44. fxg5 {[%emt 0:00:04]} Kf7 {[%emt 0:00:27]} 45. Ra6 {[%emt 0:02:28]} Rb7 {[%emt 0:00:35]} 46. Kc2 {[%emt 0:00:06]} ({Not} 46. Rxd6 Rxb3+ 47. Kd2 Rh3 $18) 46... Ke7 {[%emt 0:00:58]} 47. Rxa5 {[%emt 0:00:10] Weighted Error Value: White=0.20 (precise) /Black=0.44} 1-0

[Event "10th Cherry Blossom Classic 2023"]
[Site "Dulles"]
[Date "2023.05.27"]
[Round "3.3"]
[White "Durarbayli, Vasif"]
[Black "Muzychuk, Anna"]
[Result "1-0"]
[ECO "B34"]
[WhiteElo "2627"]
[BlackElo "2504"]
[Annotator "TA"]
[PlyCount "91"]
[EventDate "2023.05.24"]
[EventType "swiss"]
[EventCountry "USA"]
[SourceTitle "playchess.com"]
[Source "ChessBase"]
[SourceQuality "1"]
[TimeControl "5400+30"]

{[%evp 12,91,1,1,17,0,6,9,15,20,35,17,11,5,82,43,50,31,36,16,20,34,22,27,25,36,36,24,31,0,20,0,0,0,74,53,56,67,89,102,100,107,104,107,102,0,90,86,114,101,134,134,142,147,152,150,132,98,335,326,471,482,446,356,570,534,5297,1643,4778,1668,12827,12823,1571,1396,29991,29992,29992,29990,29993,29991,29994,29995]} 1. e4 {[%emt 0:00:05]} c5 {[%emt 0:00:04]} 2. Nf3 {[%emt 0:00:06]} Nc6 {[%emt 0:00:06]} 3. Nc3 {[%emt 0:00:04]} g6 {[%emt 0:00:13]} 4. d4 {[%emt 0:00:37]} cxd4 {[%emt 0:00:09]} 5. Nxd4 {[%emt 0:00:03]} Bg7 {[%emt 0:00:08]} 6. Be3 {[%emt 0:01:59]} Nf6 {[%emt 0:00:33]} 7. Nb3 {[%emt 0:00:15]} d6 {[%emt 0:01:54] B34: Sicilian: Accelerated Dragon with 5 Nc3: sidelines.} 8. Qd2 {[%emt 0:00:16]} Be6 {[%emt 0:07:42]} 9. f3 {[%emt 0:03:06]} a6 {[%emt 0:02:08] The position is equal.} 10. O-O-O {[%emt 0:02:14] [#]} Rc8 $146 {[%emt 0:03:07]} ({Predecessor:} 10... O-O 11. Kb1 Rc8 12. g4 Ne5 13. Be2 Qc7 14. h4 b5 15. h5 Bc4 16. hxg6 fxg6 {½-½ Cvak,R (2396)-Conde Poderoso,A (2367) ESP AEAC XV W/02/ email 2018}) 11. Kb1 {[%emt 0:00:45]} Ne5 {[%emt 0:00:56]} 12. Be2 {[%emt 0:13:47]} Bc4 {[%emt 0:09:53]} (12... O-O $11 {keeps the balance.}) 13. Bd4 {[%emt 0:09:07] Strongly threatening Bxe5.} Bxe2 {[%emt 0:00:49]} 14. Qxe2 {[%emt 0:00:12] And now Bxe5 would win.} Nc6 {[%emt 0:00:57]} 15. e5 {[%emt 0:10:28]} (15. Bxf6 {simplifies} Bxf6 16. Nd5 Bg7 17. h4) 15... Nxd4 $1 {[%emt 0:08:25]} 16. Nxd4 {[%emt 0:00:51]} (16. Rxd4 Nd7) 16... dxe5 {[%emt 0:01:57] [#]} 17. Ne6 {[%emt 0:02:17][%mdl 64] Discovered Attack, Double Attack} Qa5 {[%emt 0:03:09]} 18. Nxg7+ {[%emt 0:01:42] A dynamic duo of knights.} Kf8 {[%emt 0:00:05] [#]} 19. Ne6+ $1 {[%emt 0:11:39]} fxe6 {[%emt 0:00:08]} 20. Ne4 {[%emt 0:00:02]} (20. Qe3 {simplifies} Qc5 21. Rhe1 Qxe3 22. Rxe3 Rc5 23. Rde1) 20... Kg7 {[%emt 0:09:42]} 21. Nxf6 {[%emt 0:03:45]} Kxf6 {[%emt 0:00:10]} 22. Qe4 {[%emt 0:01:36]} Rcd8 {[%emt 0:03:05]} (22... Qc7 $11 {remains equal.}) 23. Rxd8 $16 {[%emt 0:02:12]} (23. Qxb7 Rxd1+ 24. Rxd1 Rd8 $11) 23... Qxd8 {[%emt 0:00:41]} 24. Qxb7 {[%emt 0:01:25][%mdl 4096] Endgame KQR-KQR} ({Much weaker is} 24. Re1 Qd5 $11) 24... Qd2 {[%emt 0:00:40]} 25. Qxa6 {[%emt 0:00:57]} Qxg2 {[%emt 0:00:58] [#]} 26. Qf1 {[%emt 0:00:09]} Qd2 {[%emt 0:00:17]} 27. Qe1 {[%emt 0:00:59]} Qg2 {[%emt 0:02:39]} 28. Qf1 {[%emt 0:00:45]} Qd2 {[%emt 0:00:07]} 29. Qc1 {[%emt 0:00:04]} Qg2 {[%emt 0:01:39][%cal Oh8c8]} 30. h4 {[%emt 0:02:02]} ({Stronger than} 30. Rg1 Qxh2 31. Qg5+ Kf7 $15) 30... Rd8 {[%emt 0:02:08][%cal Od8d2]} 31. Rg1 $36 {[%emt 0:01:55][%mdl 2048] White is really pushing.} Qe2 {[%emt 0:01:45]} 32. Re1 {[%emt 0:00:36]} Qg2 {[%emt 0:00:17]} 33. Qe3 {[%emt 0:03:48]} Qg3 {[%emt 0:01:47]} 34. a4 {[%emt 0:00:07]} Rd4 $2 {[%emt 0:00:37] [#] This move loses the game for Black.} (34... Kf7 $16 {might work better.}) 35. b3 $1 $18 {[%emt 0:03:41]} Rxh4 {[%emt 0:05:00]} (35... Qxh4 $142 36. Qxe5+ Kf7 37. Qxe6+ Kf8) 36. a5 {[%emt 0:00:28]} Rd4 {[%emt 0:00:37]} 37. Kb2 {[%emt 0:00:32]} h5 $2 {[%emt 0:00:52]} (37... Rd8 {is a better defense.} 38. a6 Ra8) 38. a6 {[%emt 0:00:44]} h4 {[%emt 0:00:07]} 39. a7 {[%emt 0:00:40]} Rd8 {[%emt 0:00:08]} 40. Ra1 {[%emt 0:00:05]} h3 {[%emt 0:00:10]} 41. a8=Q {[%emt 0:00:18]} ({Weaker is} 41. a8=B h2 42. Be4 Qg5 $14) 41... Rxa8 {[%emt 0:00:04]} 42. Rxa8 {[%emt 0:00:05] Intending Qh6 and mate.} h2 {[%emt 0:00:06]} 43. Qh6 {[%emt 0:01:08][%cal Ra8f8] White mates.} e4 {[%emt 0:00:07]} 44. Rf8+ {[%emt 0:00:13]} Ke5 {[%emt 0:00:06]} 45. Qh8+ {[%emt 0:00:30]} Kd6 {[%emt 0:01:11]} 46. Qd4+ {[%emt 0:00:15] An entertaining game by Durarbayli.   Weighted Error Value: White=0.09 (flawless) /Black=0.50} 1-0

[Event "10th Cherry Blossom Classic 2023"]
[Site "Dulles"]
[Date "2023.05.27"]
[Round "3.4"]
[White "Antipov, Mikhail Al."]
[Black "Zhukova, Natalia"]
[Result "1-0"]
[ECO "C07"]
[WhiteElo "2588"]
[BlackElo "2324"]
[Annotator "TA"]
[PlyCount "77"]
[EventDate "2023.05.24"]
[EventType "swiss"]
[EventCountry "USA"]
[SourceTitle "playchess.com"]
[Source "ChessBase"]
[SourceQuality "1"]
[TimeControl "5400+30"]

{[%evp 12,77,16,22,31,0,0,-36,-34,-34,-28,-26,-33,-23,-7,0,0,-13,-15,-20,-25,-18,17,17,22,0,-12,-10,0,0,0,0,0,0,0,0,0,0,0,0,0,0,0,0,0,0,0,0,0,0,0,0,0,0,0,0,1185,1097,1316,1031,5036,3925,1660,1560,1485,1279,989,1002]} 1. e4 {[%emt 0:00:01]} e6 {[%emt 0:00:32]} 2. d4 {[%emt 0:00:05]} d5 {[%emt 0:00:08]} 3. Nd2 {[%emt 0:00:03]} c5 {[%emt 0:01:00]} 4. Ngf3 {[%emt 0:00:09]} cxd4 {[%emt 0:01:35]} 5. exd5 {[%emt 0:00:07]} Qxd5 {[%emt 0:00:18]} 6. Bc4 {[%emt 0:00:06]} Qd8 {[%emt 0:00:16]} 7. O-O {[%emt 0:00:36][%mdl 1024] White has compensation.} Nc6 {[%emt 0:00:54] C07: French Tarrasch: 3...c5, 4 Ngf3 and 4 exd5 Qxd5.} 8. Ne4 $5 {[%emt 0:04:40][%mdl 4] [#] Exploring less charted territory.} Be7 $146 {[%emt 0:09:03]} ({Predecessor:} 8... a6 9. a4 Nf6 10. Nxf6+ gxf6 11. Nh4 f5 12. Qh5 Ne5 13. Bg5 Be7 14. Bxe7 Qxe7 15. Nxf5 exf5 {0-1 Lane,G (2440)-Savchenko,S (2570) Lloyds Bank op 18th 1994 (5)}) 9. Qe2 {[%emt 0:05:47]} (9. Bb5 $5 {[%cal Rf3d4]}) 9... Nf6 {[%emt 0:01:22] Black is slightly better.} 10. Bf4 {[%emt 0:04:59]} Nd5 {[%emt 0:09:12]} 11. Bg3 {[%emt 0:14:53]} O-O {[%emt 0:00:56] [#] ...f5 is the strong threat.} 12. h3 {[%emt 0:02:47]} f5 {[%emt 0:25:59]} 13. Ned2 {[%emt 0:00:09][%cal Be4d2,Bd2b3,Bb3c5][%mdl 32]} Bf6 {[%emt 0:00:10]} 14. Nb3 {[%emt 0:04:35]} Kh8 {[%emt 0:08:58]} 15. Rad1 {[%emt 0:20:14][%cal Rf3d4]} f4 {[%emt 0:01:05]} 16. Bxd5 {[%emt 0:00:47]} fxg3 {[%emt 0:15:10]} 17. Bxc6 {[%emt 0:00:57]} bxc6 {[%emt 0:01:25]} 18. Nc5 {[%emt 0:04:52]} ({Reject} 18. Nfxd4 Qb6 $15) 18... Qb6 {[%emt 0:05:15]} 19. Qc4 {[%emt 0:02:14]} Be7 {[%emt 0:04:30]} 20. b4 {[%emt 0:00:27]} a5 {[%emt 0:01:32]} 21. a3 {[%emt 0:00:17]} axb4 {[%emt 0:01:14]} (21... Rb8 {looks sharper.} 22. Ne5 gxf2+ 23. Rxf2 Rxf2 24. Kxf2 axb4 25. axb4 Qxb4 26. Qxb4 Rxb4 27. Ra1 Bxc5 28. Ra8 h6) 22. axb4 {[%emt 0:00:04]} Rb8 {[%emt 0:03:43]} 23. Rxd4 {[%emt 0:01:43]} gxf2+ {[%emt 0:00:17]} 24. Rxf2 {[%emt 0:01:48]} Qxb4 $1 {[%emt 0:00:50][%mdl 64] [#] Remove Defender, Decoy} 25. Qxb4 {[%emt 0:00:07]} Rxb4 {[%emt 0:00:03]} 26. Rxb4 {[%emt 0:00:03]} Bxc5 {[%emt 0:00:05]} 27. Rc4 {[%emt 0:02:12][%cal Bb4c4,Bc4c5,Bc5c7,Bc7e7,Be7e5,Be5e3][%mdl 32]} Bxf2+ {[%emt 0:00:41]} 28. Kxf2 $11 {[%emt 0:00:01][%mdl 4096] Endgame KRB-KRN} Bb7 {[%emt 0:01:58]} 29. Ke3 {[%emt 0:03:13]} c5 {[%emt 0:00:48]} 30. Rxc5 {[%emt 0:00:13]} Bxf3 {[%emt 0:03:41]} 31. gxf3 {[%emt 0:00:02] KR-KR} h6 {[%emt 0:00:06]} 32. c4 {[%emt 0:00:43][%cal Bc2c4,Bc4c5][%mdl 32]} Kg8 {[%emt 0:02:42]} 33. Rc7 {[%emt 0:00:45] And now c5 would win.} e5 $2 {[%emt 0:00:56][%mdl 8192]} (33... Rf5 $11) 34. c5 $18 {[%emt 0:01:23] White is clearly winning.} Rf4 {[%emt 0:00:03]} 35. Re7 {[%emt 0:00:27]} Rc4 {[%emt 0:00:31]} 36. Rxe5 {[%emt 0:00:05]} Kf7 {[%emt 0:00:05]} 37. Kd3 {[%emt 0:00:24]} Rc1 {[%emt 0:00:59]} 38. Kd4 {[%emt 0:00:11]} Kf6 {[%emt 0:00:12]} 39. Re3 {[%emt 0:01:06] Weighted Error Value: White=0.05 (flawless) /Black=0.05 (flawless)} 1-0

[Event "10th Cherry Blossom Classic 2023"]
[Site "Dulles"]
[Date "2023.05.27"]
[Round "3.5"]
[White "Plotkin, Mark"]
[Black "Burke, John M"]
[Result "0-1"]
[ECO "A28"]
[WhiteElo "2341"]
[BlackElo "2583"]
[Annotator "TA"]
[PlyCount "32"]
[EventDate "2023.05.24"]
[EventType "swiss"]
[EventCountry "USA"]
[SourceTitle "playchess.com"]
[Source "ChessBase"]
[SourceQuality "1"]
[TimeControl "5400+30"]

{[%evp 12,32,2,-3,-6,-24,-22,-97,-106,-102,-95,-144,-149,-149,-160,-273,-280,-460,-452,-610,-595,-566,-570]} 1. c4 {[%emt 0:00:39]} e5 {[%emt 0:00:11]} 2. Nc3 {[%emt 0:00:11]} Nf6 {[%emt 0:00:05]} 3. Nf3 {[%emt 0:00:25]} Nc6 {[%emt 0:00:05]} 4. e3 {[%emt 0:00:57]} Bb4 {[%emt 0:00:22]} 5. Qc2 {[%emt 0:00:06]} Bxc3 {[%emt 0:00:05]} 6. Qxc3 {[%emt 0:00:10]} Qe7 {[%emt 0:00:18]} 7. d3 {[%emt 0:09:33] 7.d4 is setting a new trend.} d5 {[%emt 0:02:26] A28: English Opening: Four Knights Variation.} 8. cxd5 {[%emt 0:03:34]} Nxd5 {[%emt 0:00:04][%cal Bf6d5,Bd5b4,Bb4a2][%mdl 32]} 9. Qc2 {[%emt 0:00:16] [#]} (9. Qb3 $11 Be6 10. a3 (10. Qxb7 Qb4+ 11. Qxb4 Ndxb4 $11)) 9... e4 $146 {[%emt 0:18:00] Black is more active. Black is better.} ({Predecessor:} 9... O-O 10. Be2 Rd8 11. a3 a5 12. O-O a4 13. Bd2 Be6 14. Rac1 Nb6 15. Qc5 Qxc5 16. Rxc5 {1-0 Forcen Esteban,D (2548)-Sonis,F (2458) PRO League Stage rapid 2020 (3)}) 10. dxe4 {[%emt 0:07:02]} Ndb4 {[%emt 0:00:04]} 11. Qc4 {[%emt 0:02:13]} (11. Qc3 $142 Qxe4 12. Ng5 (12. Nd4 $2 Nxd4 {[%mdl 64] Pin} 13. f3 Qh4+ 14. Kd1 Ndc2 $19)) 11... Be6 $17 {[%emt 0:05:58]} 12. Qc3 {[%emt 0:02:10]} Nxa2 {[%emt 0:00:45] A dynamic duo of knights.} 13. Qxg7 {[%emt 0:09:10]} (13. Rxa2 $17 Bxa2 14. Bd3) 13... O-O-O $19 {[%emt 0:00:45]} 14. Bd2 $2 {[%emt 0:00:40] [#]} (14. Rxa2 Bxa2 15. Be2) 14... Rhg8 $1 {[%emt 0:03:20] Black is clearly winning.} 15. Qxh7 {[%emt 0:04:35] [#]} Rh8 $1 {[%emt 0:00:52]} 16. Qg7 {[%emt 0:02:28]} Rdg8 {[%emt 0:00:04] White did not feel at home in the position after the opening.   Weighted Error Value: White=0.77/Black=0.00 (flawless)} 0-1